fUSD/lending_fUSD_20241118
["ID","MTS","AMOUNT","RATE_DAILY","PERIOD"]
[342555144,1731961881161,-500.0,9.999e-05,2]
[342555145,1731961881171,-500.0,9.999e-05,2]
[342555146,1731961881183,-500.0,9.999e-05,2]
[342555147,1731961881194,-500.0,9.999e-05,2]
[342555148,1731961881204,-500.0,9.999e-05,2]
[342555149,1731961881213,-500.0,9.999e-05,2]
[342555150,1731961881223,-500.0,9.999e-05,2]
[342555151,1731961881232,-500.0,9.999e-05,2]
[342555152,1731961881242,-500.0,9.999e-05,2]
[342555153,1731961881251,-500.0,9.999e-05,2]
[342555154,1731961881261,-500.0,9.999e-05,2]
[342555155,1731961881270,-492.25,9.999e-05,2]
[342555156,1731961881280,-465.37668702,9.999e-05,2]
[342555157,1731961881290,-615.07,9.999e-05,2]
[342555158,1731961881302,-615.07,9.999e-05,2]
[342555159,1731961881312,-615.07,9.999e-05,2]
[342555160,1731961881322,-615.07,9.999e-05,2]
[342555161,1731961881331,-615.07,9.999e-05,2]
[342555162,1731961881341,-3340.12,9.999e-05,2]
[342555163,1731961881351,-615.07,9.999e-05,2]
[342555164,1731961881361,-3340.12,9.999e-05,2]
[342555165,1731961881371,-615.07,9.999e-05,2]
[342555166,1731961881381,-3340.12,9.999e-05,2]
[342555167,1731961881391,-615.07,9.999e-05,2]
[342555168,1731961881400,-3340.12,9.999e-05,2]
[342555169,1731961881410,-3340.12,9.999e-05,2]
[342555170,1731961881420,-615.07,9.999e-05,2]
[342555171,1731961881431,-3340.12,9.999e-05,2]
[342555172,1731961881441,-615.07,9.999e-05,2]
[342555173,1731961881450,-3340.12,9.999e-05,2]
[342555174,1731961881460,-615.07,9.999e-05,2]
[342555175,1731961881470,-3340.12,9.999e-05,2]
[342555176,1731961881480,-615.07,9.999e-05,2]
[342555177,1731961881490,-1348.25,9.999e-05,2]
[342555178,1731961881500,-3340.12,9.999e-05,2]
[342555179,1731961881509,-615.07,9.999e-05,2]
[342555180,1731961881519,-1348.25,9.999e-05,2]
[342555181,1731961881528,-3340.12,9.999e-05,2]
[342555182,1731961881538,-615.07,9.999e-05,2]
[342555183,1731961881550,-1348.25,9.999e-05,2]
[342555184,1731961881560,-3340.12,9.999e-05,2]
[342555185,1731961881570,-615.07,9.999e-05,2]
[342555186,1731961881580,-1348.25,9.999e-05,2]
[342555187,1731961881590,-3340.15396597,9.999e-05,2]
[342555188,1731961881605,-615.08,9.999e-05,2]
[342555189,1731961881615,-1348.25,9.999e-05,2]
[342555190,1731961881624,-1348.25,9.999e-05,2]
[342555191,1731961881634,-1348.25,9.999e-05,2]
[342555192,1731961881648,-1348.25,9.999e-05,2]
[342555193,1731961881658,-1348.25,9.999e-05,2]
[342555194,1731961881667,-1348.25,9.999e-05,2]
[342555195,1731961881678,-1348.25,9.999e-05,2]
[342555196,1731961881691,-1348.25,9.999e-05,2]
[342555197,1731961881701,-1348.28629618,9.999e-05,2]
[342555198,1731961881710,-839.97,9.999e-05,2]
[342555199,1731961881719,-839.97,9.999e-05,2]
[342555200,1731961881728,-839.97,9.999e-05,2]
[342555201,1731961881737,-839.97,9.999e-05,2]
[342555202,1731961881746,-839.97,9.999e-05,2]
[342555203,1731961881756,-839.97,9.999e-05,2]
[342555204,1731961881765,-839.97,9.999e-05,2]
[342555205,1731961881775,-839.97,9.999e-05,2]
[342555206,1731961881784,-839.97,9.999e-05,2]
[342555207,1731961881794,-839.97,9.999e-05,2]
[342555208,1731961881808,-839.97,9.999e-05,2]
[342555209,1731961881818,-839.97,9.999e-05,2]
[342555210,1731961881827,-839.97,9.999e-05,2]
[342555211,1731961881836,-839.97,9.999e-05,2]
[342555212,1731961881846,-840.181369,9.999e-05,2]
[342555213,1731961881856,-500.0,9.999e-05,2]
[342555214,1731961881866,-500.0,9.999e-05,2]
[342555215,1731961881875,-500.0,9.999e-05,2]
[342555216,1731961881885,-500.0,9.999e-05,2]
[342555217,1731961881895,-500.0,9.999e-05,2]
[342555218,1731961881904,-500.0,9.999e-05,2]
[342555219,1731961881914,-500.0,9.999e-05,2]
[342555220,1731961881923,-434.90686528,9.999e-05,2]
[342555221,1731961881933,-500.0,9.999e-05,2]
[342555222,1731961881943,-500.0,9.999e-05,2]
[342555223,1731961881953,-500.0,9.999e-05,2]
[342555224,1731961881963,-500.0,9.999e-05,2]
[342555225,1731961881973,-193.9,9.999e-05,2]
[342555226,1731961881982,-500.0,9.999e-05,2]
[342555227,1731961881992,-182.54,9.999e-05,2]
[342555228,1731961882002,-640.72,9.999e-05,2]
[342555229,1731961882012,-640.72,9.999e-05,2]
[342555230,1731961882021,-640.72,9.999e-05,2]
[342555231,1731961882031,-640.72,9.999e-05,2]
[342555232,1731961882041,-640.72,9.999e-05,2]
[342555233,1731961882054,-640.72,9.999e-05,2]
[342555234,1731961882064,-640.72,9.999e-05,2]
[342555235,1731961882259,-640.72,9.999e-05,2]
[342555236,1731961882270,-640.72,9.999e-05,2]
[342555237,1731961882279,-500.0,9.999e-05,2]
[342555238,1731961882288,-640.72,9.999e-05,2]
[342555239,1731961882299,-500.0,9.999e-05,2]
[342555240,1731961882309,-640.72,9.999e-05,2]
[342555241,1731961882318,-164.59,9.999e-05,2]
[342555242,1731961882327,-640.72,9.999e-05,2]
[342555243,1731961882336,-640.72,9.999e-05,2]
[342555244,1731961882346,-640.87863009,9.999e-05,2]
[342555245,1731961882355,-1043.91,9.999e-05,2]
[342555246,1731961882364,-500.0,9.999e-05,2]
[342555247,1731961882373,-500.0,9.999e-05,2]
[342555248,1731961882382,-1043.91,9.999e-05,2]
[342555249,1731961882391,-398.96729001,9.999e-05,2]
[342555250,1731961882400,-500.0,9.999e-05,2]
[342555251,1731961882410,-1043.91,9.999e-05,2]
[342555252,1731961882420,-500.0,9.999e-05,2]
[342555253,1731961882429,-1043.91,9.999e-05,2]
[342555254,1731961882439,-232.56817981,9.999e-05,2]
[342555255,1731961882448,-1043.91,9.999e-05,2]
[342555256,1731961882458,-1043.91,9.999e-05,2]
[342555257,1731961882467,-1043.91,9.999e-05,2]
[342555258,1731961882476,-1043.91,9.999e-05,2]
[342555259,1731961882486,-1043.91,9.999e-05,2]
[342555260,1731961882495,-1043.91,9.999e-05,2]
[342555261,1731961882505,-1043.91,9.999e-05,2]
[342555262,1731961882514,-1043.91364901,9.999e-05,2]
[342555263,1731961882523,-500.0,9.999e-05,2]
[342555264,1731961882533,-500.0,9.999e-05,2]
[342555265,1731961882542,-500.0,9.999e-05,2]
[342555266,1731961882557,-500.0,9.999e-05,2]
[342555267,1731961882568,-500.0,9.999e-05,2]
[342555268,1731961882578,-500.0,9.999e-05,2]
[342555269,1731961882588,-500.0,9.999e-05,2]
[342555270,1731961882598,-500.0,9.999e-05,2]
[342555271,1731961882611,-500.0,9.999e-05,2]
[342555272,1731961882621,-500.0,9.999e-05,2]
[342555273,1731961882630,-232.77,9.999e-05,2]
[342555274,1731961882639,-500.0,9.999e-05,2]
[342555275,1731961882650,-500.0,9.999e-05,2]
[342555276,1731961882659,-500.0,9.999e-05,2]
[342555277,1731961882668,-500.0,9.999e-05,2]
[342555278,1731961882680,-500.0,9.999e-05,2]
[342555279,1731961882690,-500.0,9.999e-05,2]
[342555280,1731961882700,-500.0,9.999e-05,2]
[342555281,1731961882710,-500.0,9.999e-05,2]
[342555282,1731961882719,-500.0,9.999e-05,2]
[342555283,1731961882729,-500.0,9.999e-05,2]
[342555284,1731961882739,-500.0,9.999e-05,2]
[342555285,1731961882748,-391.24890628,9.999e-05,2]
[342555286,1731961882758,-500.0,9.999e-05,2]
[342555287,1731961882768,-500.0,9.999e-05,2]
[342555288,1731961882778,-500.0,9.999e-05,2]
[342555289,1731961882787,-220.8,9.999e-05,2]
[342555290,1731961882798,-500.0,9.999e-05,2]
[342555291,1731961882807,-500.0,9.999e-05,2]
[342555292,1731961882817,-108616.21801192,0.0001,2]
[342555293,1731961883162,-500.823414,0.0001,2]
[342555294,1731961883174,-11167.63953484,0.0001,2]
[342555295,1731961883186,-322.79375651,0.0001,2]
[342555296,1731961883201,-1043.78390177,0.0001,2]
[342555297,1731961883212,-1795.65,0.0001,2]
[342555298,1731961883225,-1944.3226866,0.0001,2]
[342555299,1731961883236,-751.5,0.0001,2]
[342555300,1731961883248,-371.599991,0.0001,2]
[342555301,1731961883259,-421.78190135,0.0001,2]
[342555302,1731961883271,-16162.8612,0.0001,2]
[342555303,1731961883282,-80303.01562553,0.0001,2]
[342555304,1731961883294,-5830.84243173,0.0001,2]
[342555305,1731961883308,-685.40539581,0.0001,2]
[342555306,1731961883320,-1790.597465,0.0001,2]
[342555307,1731961883346,-500.0,9.999e-05,2]
[342555308,1731961883356,-45.75603719,0.0001,2]
[342555309,1731961883367,-3637.03416994,0.0001,2]
[342555310,1731961883378,-1539.68924099,0.0001,2]
[342555311,1731961883389,-2261.02859279,0.0001,2]
[342555312,1731961883401,-9000.0,0.0001,2]
[342555313,1731961883412,-1470.87908501,0.0001,2]
[342555314,1731961883423,-445.42957939,0.0001,2]
[342555315,1731961883435,-29519.38115562,0.0001,2]
[342555316,1731961883446,-1224528.32995816,0.0001,2]
[342555317,1731961883464,-8499.91307812,0.0001,2]
[342555318,1731961883475,-4498.94574469,0.0001,2]
[342555319,1731961883487,-5247.58473704,0.0001,2]
[342555320,1731961883498,-6765.10974779,0.0001,2]
[342555321,1731961883509,-9533.13704487,0.0001,2]
[342555322,1731961883521,-12062.54248078,0.0001,2]
[342555323,1731961883531,-12305.92734047,0.0001,2]
[342555324,1731961883674,-500.0,9.999e-05,2]
[342555325,1731961883683,-500.0,9.999e-05,2]
[342555326,1731961883698,-364.99,9.999e-05,2]
[342555327,1731961883707,-6570.02322736,0.0001,2]
[342555328,1731961883718,-438.15575988,0.0001,2]
[342555329,1731961883729,-2860.2,0.0001,2]
[342555330,1731961883746,-422.0088979,0.0001,2]
[342555331,1731961883757,-7984.37149664,0.0001,2]
[342555332,1731961883769,-485.86130125,0.0001,2]
[342555333,1731961883779,-2533.1971993,0.0001,2]
[342555334,1731961883791,-353.37397919,0.0001,2]
[342555335,1731961883806,-634.23500001,0.0001,2]
[342555336,1731961883821,-559.82514268,0.0001,2]
[342555337,1731961883832,-1234.9840513,0.0001,2]
[342555338,1731961883843,-22993.38,0.0001,2]
[342555339,1731961883854,-10142.8895,0.0001,2]
[342555340,1731961884107,-4106.93220477,0.0001,2]
[342555341,1731961884118,-378.22097235,0.0001,2]
[342555342,1731961884130,-4014.18528491,0.0001,2]
[342555343,1731961884141,-1927.87982417,0.0001,2]
[342555344,1731961884153,-3640.0099914,0.0001,2]
[342555345,1731961884164,-91827.7477566,0.0001,2]
[342555346,1731961884175,-31830.0,0.0001,2]
[342555347,1731961884193,-49868.46994345,0.0001,2]
[342555348,1731961884205,-1308.5823955,0.0001,2]
[342555349,1731961884216,-11785.90403951,0.0001,2]
[342555350,1731961884227,-5994.16751239,0.0001,2]
[342555351,1731961884238,-155147.99999999,0.0001,2]
[342555352,1731961884250,-17527.25486953,0.0001,2]
[342555353,1731961884261,-47894.40000053,0.0001,2]
[342555354,1731961884272,-1350.91130377,0.0001,2]
[342555355,1731961884283,-220610.39912384,0.0001,2]
[342555356,1731961884308,-210476.70828234,0.0001,2]
[342555357,1731961884319,-65399.9999995,0.0001,2]
[342555358,1731961884330,-455.477718,0.0001,2]
[342555359,1731961884341,-831.15986556,0.0001,2]
[342555360,1731961884353,-830.00175765,0.0001,2]
[342555361,1731961884364,-733.3,0.0001,2]
[342555362,1731961884376,-469.84,0.0001,2]
[342555363,1731961884815,-82220.21478569,0.0001,2]
[342555364,1731961884827,-506.7,0.0001,2]
[342555365,1731961884838,-1678.80051006,0.0001,2]
[342555366,1731961884854,-2815.1532053,0.0001,2]
[342555367,1731961884869,-268613.0566478,0.0001,2]
[342555368,1731961884880,-313.68829447,0.0001,2]
[342555369,1731961884891,-22380.15741563,0.0001,2]
[342555370,1731961884903,-92058.0961496,0.0001,2]
[342555371,1731961884914,-13028.11897013,0.0001,2]
[342555372,1731961884925,-13601.46275846,0.0001,2]
[342555373,1731961884936,-39375.463,0.0001,2]
[342555374,1731961884947,-38442.12797413,0.0001,2]
[342555375,1731961884958,-32020.46721473,0.0001,2]
[342555376,1731961884970,-2753.86927635,0.0001,2]
[342555377,1731961884981,-1249.6160015,0.0001,2]
[342555378,1731961884992,-512.87096802,0.0001,2]
[342555379,1731961885003,-9489.1821759,0.0001,2]
[342555380,1731961885014,-6603.0,0.0001,2]
[342555381,1731961885025,-1955.36425217,0.0001,2]
[342555382,1731961885036,-310.2943795,0.0001,2]
[342555383,1731961885052,-1420.82382437,0.0001,2]
[342555384,1731961885071,-500.0,9.991e-05,2]
[342555385,1731961885080,-4095.2,0.0001,2]
[342555386,1731961885091,-2262.05669738,0.0001,2]
[342555387,1731961885102,-1002184.02079981,0.0001,2]
[342555388,1731961885131,-3179.70000001,0.0001,2]
[342555389,1731961885143,-1399.99991766,0.0001,2]
[342555390,1731962398438,814.63,8.219e-05,2]
[342555505,1731963031494,-2000.0,8.948e-05,2]
[342555506,1731963031504,-250.0,8.948e-05,2]
[342555507,1731963031514,-200.0,8.966e-05,2]
[342555508,1731963031524,-2345.4,8.966e-05,2]
[342555509,1731963031536,-250.0,8.966e-05,2]
[342555510,1731963031546,-1000.0,8.969e-05,2]
[342555511,1731963031556,-1500.0,8.97e-05,2]
[342555512,1731963031566,-667.34,8.98e-05,2]
[342555513,1731963031575,-790.96,9.032e-05,2]
[342555514,1731963031585,-150.0,9.771e-05,2]
[342555515,1731963031595,-1000.0,9.772e-05,2]
[342555516,1731963031605,-31827.8157,9.772e-05,2]
[342555517,1731963031617,-1868.77666188,9.789e-05,2]
[342555518,1731963031628,-2017.9943,9.799e-05,2]
[342555519,1731963031639,-9167.12356517,9.799e-05,2]
[342555520,1731963031656,-562.94152736,9.799e-05,2]
[342555521,1731963031669,-5782.98734345,9.799e-05,2]
[342555522,1731963031682,-572.13420326,9.799e-05,2]
[342555523,1731963031695,-311.5029668,9.799e-05,2]
[342555524,1731963031709,-575.56159088,9.799e-05,2]
[342555525,1731963031721,-360.91880308,9.799e-05,2]
[342555526,1731963031732,-12213.40251659,9.799e-05,2]
[342555527,1731963031756,-3115.88337667,9.799e-05,2]
[342555528,1731963031770,-5197.27410674,9.799e-05,2]
[342555529,1731963031780,-36.30102468,9.869e-05,2]
[342555532,1731963031801,-1171.81367532,9.869e-05,2]
[342555534,1731963031811,-500.0,9.899e-05,2]
[342555536,1731963031822,-440.77818818,9.899e-05,2]
[342556092,1731963037512,-59.22181182,9.899e-05,2]
[342556095,1731963037523,-500.0,9.899e-05,2]
[342556099,1731963037534,-500.0,9.899e-05,2]
[342556101,1731963037543,-500.0,9.899e-05,2]
[342556104,1731963037562,-500.0,9.899e-05,2]
[342556106,1731963037577,-500.0,9.899e-05,2]
[342556108,1731963037589,-286.96120028,9.899e-05,2]
[342556111,1731963037605,-213.03879972,9.899e-05,2]
[342556114,1731963037618,-500.0,9.899e-05,2]
[342556116,1731963037631,-500.0,9.899e-05,2]
[342556118,1731963037643,-500.0,9.899e-05,2]
[342556120,1731963037653,-500.0,9.899e-05,2]
[342556122,1731963037669,-500.0,9.899e-05,2]
[342556124,1731963037679,-500.0,9.899e-05,2]
[342556126,1731963037689,-500.0,9.899e-05,2]
[342556128,1731963037699,-288.35726426,9.899e-05,2]
[342556131,1731963037711,-211.64273574,9.899e-05,2]
[342556133,1731963037721,-500.0,9.899e-05,2]
[342556135,1731963037731,-500.0,9.899e-05,2]
[342556137,1731963037740,-500.0,9.899e-05,2]
[342556139,1731963037751,-500.0,9.899e-05,2]
[342556141,1731963037762,-500.0,9.899e-05,2]
[342556144,1731963037774,-500.0,9.899e-05,2]
[342556146,1731963037784,-500.0,9.899e-05,2]
[342556148,1731963037797,-500.0,9.899e-05,2]
[342556150,1731963037808,-500.0,9.899e-05,2]
[342556152,1731963037820,-500.0,9.899e-05,2]
[342556155,1731963037830,-500.0,9.899e-05,2]
[342556157,1731963037840,-500.0,9.899e-05,2]
[342556159,1731963037850,-500.0,9.899e-05,2]
[342556161,1731963037860,-500.0,9.899e-05,2]
[342556163,1731963037869,-500.0,9.899e-05,2]
[342556165,1731963037879,-500.0,9.899e-05,2]
[342556167,1731963037889,-500.0,9.899e-05,2]
[342556169,1731963037904,-500.0,9.899e-05,2]
[342556171,1731963037923,-500.0,9.899e-05,2]
[342556173,1731963037933,-500.0,9.899e-05,2]
[342556174,1731963037943,-500.0,9.899e-05,2]
[342556177,1731963037964,-500.0,9.899e-05,2]
[342556179,1731963037979,-500.0,9.899e-05,2]
[342556180,1731963037990,-500.0,9.899e-05,2]
[342556182,1731963038000,-500.0,9.899e-05,2]
[342556184,1731963038011,-500.0,9.899e-05,2]
[342556186,1731963038022,-500.0,9.899e-05,2]
[342556188,1731963038033,-500.0,9.899e-05,2]
[342556190,1731963038044,-367.62118479,9.899e-05,2]
[342556191,1731963038056,-500.0,9.899e-05,2]
[342556193,1731963038072,-500.0,9.899e-05,2]
[342556195,1731963038084,-500.0,9.899e-05,2]
[342556197,1731963038095,-468.89365976,9.899e-05,2]
[342556200,1731963038115,-31.10634024,9.899e-05,2]
[342556201,1731963038127,-336.32874625,9.899e-05,2]
[342556203,1731963038138,-6.04491351,9.899e-05,2]
[342556205,1731963038153,-493.95508649,9.899e-05,2]
[342556207,1731963038168,-502.7490292,9.899e-05,2]
[342556209,1731963038180,-557.449411,9.899e-05,2]
[342556211,1731963038192,-500.0,9.899e-05,2]
[342556213,1731963038203,-500.0,9.899e-05,2]
[342556215,1731963038214,-500.0,9.899e-05,2]
[342556217,1731963038226,-500.0,9.899e-05,2]
[342556219,1731963038237,-500.0,9.899e-05,2]
[342556221,1731963038248,-500.0,9.899e-05,2]
[342556223,1731963038259,-500.0,9.899e-05,2]
[342556224,1731963038270,-500.0,9.899e-05,2]
[342556226,1731963038281,-500.0,9.899e-05,2]
[342556228,1731963038292,-227.7983208,9.899e-05,2]
[342556230,1731963038304,-500.0,9.899e-05,2]
[342556232,1731963038314,-500.0,9.899e-05,2]
[342556234,1731963038326,-500.0,9.899e-05,2]
[342556236,1731963038337,-500.0,9.899e-05,2]
[342556237,1731963038348,-500.0,9.899e-05,2]
[342556239,1731963038359,-500.0,9.899e-05,2]
[342556241,1731963038370,-506.92547345,9.899e-05,2]
[342556243,1731963038380,-500.0,9.899e-05,2]
[342556245,1731963038391,-159.9758898,9.899e-05,2]
[342556247,1731963038402,-500.0,9.899e-05,2]
[342556249,1731963038414,-500.0,9.899e-05,2]
[342556251,1731963038425,-500.0,9.899e-05,2]
[342556253,1731963038436,-500.0,9.899e-05,2]
[342556254,1731963038447,-541.47074649,9.899e-05,2]
[342556256,1731963038457,-500.0,9.899e-05,2]
[342556258,1731963038468,-500.0,9.899e-05,2]
[342556260,1731963038479,-500.0,9.899e-05,2]
[342556262,1731963038490,-500.0,9.899e-05,2]
[342556264,1731963038501,-500.0,9.899e-05,2]
[342556266,1731963038511,-500.0,9.899e-05,2]
[342556267,1731963038522,-500.0,9.899e-05,2]
[342556269,1731963038532,-500.0,9.899e-05,2]
[342556271,1731963038543,-500.0,9.899e-05,2]
[342556273,1731963038555,-500.0,9.899e-05,2]
[342556276,1731963038570,-500.0,9.899e-05,2]
[342556278,1731963038581,-500.0,9.899e-05,2]
[342556280,1731963038592,-500.0,9.899e-05,2]
[342556281,1731963038603,-500.0,9.899e-05,2]
[342556283,1731963038615,-500.0,9.899e-05,2]
[342556285,1731963038625,-500.0,9.899e-05,2]
[342556287,1731963038636,-500.0,9.899e-05,2]
[342556289,1731963038646,-500.0,9.899e-05,2]
[342556291,1731963038661,-500.0,9.899e-05,2]
[342556293,1731963038671,-500.0,9.899e-05,2]
[342556295,1731963038683,-500.0,9.899e-05,2]
[342556297,1731963038694,-500.0,9.899e-05,2]
[342556298,1731963038705,-486.76881707,9.899e-05,2]
[342556300,1731963038717,-222.65321195,9.899e-05,2]
[342556302,1731963038728,-500.0,9.899e-05,2]
[342556304,1731963038739,-45467.3511,9.9e-05,2]
[342556306,1731963038750,-500.0,9.969e-05,2]
[342556308,1731963038760,-500.0,9.969e-05,2]
[342556310,1731963038771,-500.89217139,9.969e-05,2]
[342556312,1731963038781,-500.0,9.969e-05,2]
[342556314,1731963038792,-500.0,9.969e-05,2]
[342556315,1731963038802,-500.0,9.969e-05,2]
[342556317,1731963038813,-353.82980625,9.969e-05,2]
[342556319,1731963038823,-500.0,9.969e-05,2]
[342556321,1731963038834,-500.0,9.969e-05,2]
[342556323,1731963038844,-500.0,9.969e-05,2]
[342556325,1731963038854,-531.1,9.969e-05,2]
[342556327,1731963038865,-500.0,9.969e-05,2]
[342556329,1731963038876,-500.0,9.969e-05,2]
[342556331,1731963038887,-500.0,9.969e-05,2]
[342556333,1731963038898,-500.0,9.969e-05,2]
[342556334,1731963038912,-500.0,9.969e-05,2]
[342556336,1731963038927,-527.6,9.969e-05,2]
[342556338,1731963038937,-500.0,9.97e-05,2]
[342556340,1731963038948,-500.0,9.97e-05,2]
[342556342,1731963038958,-500.0,9.97e-05,2]
[342556344,1731963038970,-558.77,9.97e-05,2]
[342556346,1731963038981,-500.0,9.971e-05,2]
[342556348,1731963038991,-500.0,9.971e-05,2]
[342556349,1731963039002,-500.0,9.971e-05,2]
[342556351,1731963039014,-500.0,9.971e-05,2]
[342556353,1731963039024,-454.0,9.971e-05,2]
[342556355,1731963039034,-500.0,9.971e-05,2]
[342556357,1731963039044,-500.0,9.971e-05,2]
[342556359,1731963039056,-276.02,9.971e-05,2]
[342556361,1731963039066,-500.0,9.971e-05,2]
[342556363,1731963039078,-162.0,9.971e-05,2]
[342556365,1731963039088,-500.0,9.971e-05,2]
[342556366,1731963039098,-500.0,9.971e-05,2]
[342556368,1731963039109,-500.0,9.971e-05,2]
[342556370,1731963039119,-500.0,9.971e-05,2]
[342556372,1731963039129,-500.0,9.971e-05,2]
[342556374,1731963039139,-500.0,9.971e-05,2]
[342556376,1731963039150,-500.0,9.971e-05,2]
[342556378,1731963039163,-500.0,9.971e-05,2]
[342556380,1731963039173,-500.0,9.971e-05,2]
[342556381,1731963039183,-500.0,9.971e-05,2]
[342556383,1731963039193,-500.0,9.971e-05,2]
[342556385,1731963039204,-500.0,9.971e-05,2]
[342556387,1731963039215,-500.0,9.971e-05,2]
[342556389,1731963039225,-500.0,9.971e-05,2]
[342556390,1731963039235,-500.0,9.971e-05,2]
[342556391,1731963039244,-500.0,9.971e-05,2]
[342556392,1731963039254,-500.0,9.971e-05,2]
[342556393,1731963039264,-500.0,9.971e-05,2]
[342556394,1731963039273,-351.29019035,9.971e-05,2]
[342556395,1731963039283,-500.0,9.971e-05,2]
[342556396,1731963039293,-500.0,9.971e-05,2]
[342556397,1731963039303,-500.0,9.971e-05,2]
[342556398,1731963039312,-500.0,9.972e-05,2]
[342556399,1731963039322,-432.52,9.972e-05,2]
[342556401,1731963039332,-500.0,9.972e-05,2]
[342556402,1731963039341,-201.13367907,9.973e-05,2]
[342556404,1731963039351,-500.0,9.973e-05,2]
[342556406,1731963039361,-500.0,9.973e-05,2]
[342556410,1731963039371,-159.534,9.983e-05,2]
[342556411,1731963039381,-500.0,9.986e-05,2]
[342556412,1731963039390,-500.0,9.986e-05,2]
[342556414,1731963039400,-506.34602822,9.986e-05,2]
[342556415,1731963039414,-500.0,9.986e-05,2]
[342556417,1731963039429,-475.17,9.986e-05,2]
[342556420,1731963039439,-500.0,9.986e-05,2]
[342556422,1731963039450,-903.95,9.986e-05,2]
[342556424,1731963039460,-500.0,9.986e-05,2]
[342556426,1731963039470,-500.0,9.987e-05,2]
[342556428,1731963039480,-500.0,9.987e-05,2]
[342556430,1731963039490,-500.0,9.987e-05,2]
[342556432,1731963039500,-500.0,9.987e-05,2]
[342556434,1731963039510,-500.0,9.987e-05,2]
[342556436,1731963039521,-500.0,9.987e-05,2]
[342556438,1731963039532,-397.793416,9.987e-05,2]
[342556440,1731963039542,-500.0,9.987e-05,2]
[342556442,1731963039552,-500.0,9.987e-05,2]
[342556444,1731963039563,-500.0,9.987e-05,2]
[342556446,1731963039573,-500.0,9.987e-05,2]
[342556448,1731963039584,-500.0,9.987e-05,2]
[342556451,1731963039594,-500.0,9.987e-05,2]
[342556453,1731963039604,-500.0,9.987e-05,2]
[342556455,1731963039614,-500.0,9.987e-05,2]
[342556457,1731963039624,-500.0,9.987e-05,2]
[342556459,1731963039634,-500.0,9.987e-05,2]
[342556461,1731963039643,-500.0,9.987e-05,2]
[342556463,1731963039654,-500.0,9.987e-05,2]
[342556465,1731963039664,-500.0,9.987e-05,2]
[342556467,1731963039674,-500.0,9.987e-05,2]
[342556469,1731963039684,-500.0,9.987e-05,2]
[342556471,1731963039694,-500.0,9.987e-05,2]
[342556473,1731963039704,-500.0,9.987e-05,2]
[342556475,1731963039714,-500.0,9.987e-05,2]
[342556477,1731963039724,-500.0,9.987e-05,2]
[342556479,1731963039734,-195.7949,9.987e-05,2]
[342556482,1731963039751,-500.0,9.987e-05,2]
[342556484,1731963039765,-504.14970032,9.987e-05,2]
[342556486,1731963039776,-500.0,9.987e-05,2]
[342556489,1731963039787,-500.0,9.987e-05,2]
[342556491,1731963039798,-500.0,9.987e-05,2]
[342556493,1731963039809,-500.0,9.987e-05,2]
[342556495,1731963039819,-500.0,9.987e-05,2]
[342556497,1731963039829,-500.0,9.987e-05,2]
[342556499,1731963039840,-500.0,9.987e-05,2]
[342556501,1731963039850,-500.0,9.987e-05,2]
[342556504,1731963039861,-500.0,9.987e-05,2]
[342556506,1731963039872,-500.0,9.987e-05,2]
[342556508,1731963039884,-500.0,9.987e-05,2]
[342556510,1731963039894,-500.0,9.987e-05,2]
[342556512,1731963039904,-500.0,9.987e-05,2]
[342556514,1731963039921,-500.0,9.987e-05,2]
[342556516,1731963039932,-500.0,9.987e-05,2]
[342556519,1731963039942,-500.0,9.987e-05,2]
[342556521,1731963039953,-500.0,9.987e-05,2]
[342556523,1731963039963,-500.0,9.987e-05,2]
[342556525,1731963039974,-500.0,9.987e-05,2]
[342556527,1731963039988,-500.0,9.987e-05,2]
[342556529,1731963039999,-10049.9583807,9.988e-05,2]
[342556531,1731963040010,-2053.7888778,9.988e-05,2]